Cogmind - Beta 10.1 @@@ ROGUE MODE // 2020.10.25 @ 17:20:37 Player: debl Result: Destroyed by as-29452 with Assembled Rifle Performance ------------- Evolutions (1) 500 Regions Visited (4) 800 Robots Destroyed (22) 110 Value Destroyed (480) 480 Prototype IDs (0) 0 Alien Tech Used (0) 0 Bonus (20) 20 TOTAL SCORE: 1910 Bonus ------- Follower Combat Kills 50 Friendly Fire -30 Cogmind --------- Core Integrity 0/400 Matter 295/300 Energy 500/500 System Corruption 0% Temperature Cool (0) Movement Core (100) Ox1 Location -9/Mines Parts ------- > --- POWER (2) -------- (None) > --- PROPULSION (2) --- (None) > --- UTILITY (2) ------ High-capacity Battery > --- WEAPON (3) ------- (None) > --- INVENTORY (4) ---- (None) Peak State ------------ > --- POWER ------------ Ion Engine Reinforced Ion Engine > --- PROPULSION ------- Light Treads Light Treads > --- UTILITY ---------- Improved Heat Sink Light Armor Plating > --- WEAPON ----------- Medium Laser Beamcaster Grenade Launcher > --- INVENTORY -------- Aluminum Leg Aluminum Leg High-capacity Battery [Rating: 16] Favorites ----------- Power Ion Engine Engine Ion Engine Propulsion Light Treads Treads Light Treads Utility Light Armor Plating Device Improved Heat Sink Storage Small Storage Unit Protection Light Armor Plating Weapon Medium Laser Energy Gun Medium Laser Ballistic Gun Heavy Assault Rifle Launcher Grenade Launcher Build | -11 -10 -10 -9 -9 ------- Run | Scr Mat Min Mat Min Slots Evolved 2 | . . . 2 . Power 1 | . . . 1 . Propulsion . | . . . . . Utility . | . . . . . Weapon 1 | . . . 1 . Parts Attached 22 | 7 2 . 9 4 Power 4 | 2 . . 2 . Engine 4 | 2 . . 2 . Core . | . . . . . Reactor . | . . . . . Propulsion 6 | 2 . . 2 2 Treads 6 | 2 . . 2 2 Leg . | . . . . . Wheel . | . . . . . Hover . | . . . . . Flight . | . . . . . Utility 7 | 1 2 . 2 2 Device 1 | . . . 1 . Storage 2 | 1 . . . 1 Processor . | . . . . . Hackware . | . . . . . Protection 4 | . 2 . 1 1 Artifact . | . . . . . Weapon 5 | 2 . . 3 . Energy Gun 3 | 2 . . 1 . Energy Cannon . | . . . . . Ballistic Gun 1 | . . . 1 . Ballistic Cannon . | . . . . . Launcher 1 | . . . 1 . Special Weapon . | . . . . . Impact Weapon . | . . . . . Slashing Weapon . | . . . . . Piercing Weapon . | . . . . . Special Melee Weapon . | . . . . . Unidentified Prototypes . | . . . . . Parts Lost 12 | . . . 1 11 Power 2 | . . . . 2 Propulsion 4 | . . . . 4 Utility 2 | . . . . 2 Weapon 4 | . . . 1 3 Highest Loss Streak 11 | . . . 1 11 Average Slot Usage (%) 94 | . 95 100 96 68 Engine 18 | . 14 14 19 15 Treads 23 | . 28 28 22 17 Device 6 | . . . 8 4 Protection 14 | . 20 28 12 4 Energy Gun 21 | . 28 28 21 6 Launcher 8 | . . . 11 6 Naked Turns . | . . . . . Heaviest Build 29 | 13 15 15 29 27 Greatest Support 40 | 40 40 40 40 40 Greatest Overweight (x) 2 | 2 . . 1 1 Average Overweight (x) . | . . . . . Largest Inventory Capacity 6 | 6 6 4 4 4 Average Capacity 4 | 4 4 4 4 4 Most Carried 4 | 4 4 4 4 4 Average Carried 3 | 1 2 4 3 1 Final Capacity 6 | 6 4 4 4 4 Final Carried 4 | 2 4 4 4 . Class Distribution -------------------- 73% | Mutant 26% | Tank Dominant Class ---------------- Mutant | -10/Materials Mutant | -10/Mines Mutant | -9/Materials Mutant | -9/Mines Resources | -11 -10 -10 -9 -9 ----------- Run | Scr Mat Min Mat Min Matter Collected 507 | 243 24 23 202 15 Remotely . | . . . . . Salvage Created 601 | . 24 49 513 15 Parts 47 | . 1 2 44 . Haulers Intercepted . | . . . . . Recyclers Shooed 1 | . . . 1 . Parts Field Recycled . | . . . . . Retrieved Matter . | . . . . . Parts Self-Destructed . | . . . . . Prevented . | . . . . . Kills | -11 -10 -10 -9 -9 ------- Run | Scr Mat Min Mat Min Combat Hostiles Destroyed 17 | . . 1 15 1 Guns 13 | . . 1 11 1 AOE 4 | . . . 4 . Classes Destroyed 9 | . 1 1 6 1 Worker 1 | . . . 1 . Builder 2 | . . . 2 . Recycler 1 | . . . 1 . Watcher 1 | . 1 . . . Swarmer 6 | . . . 6 . Grunt 7 | . . 1 6 . Brawler 1 | . . . 1 . Sentry 2 | . . . 2 . Assembled 1 | . . . . 1 Best Kill Streak 8 | . 1 1 8 1 Combat Bots Only 5 | . . 1 5 1 Max Kills in Single Turn 2 | . 1 1 2 1 Gunslinging . | . . . . . Exploded 2 | . . . 2 . Melee . | . . . . . Uniques/NPCs Destroyed . | . . . . . Combat | -11 -10 -10 -9 -9 -------- Run | Scr Mat Min Mat Min Damage Taken 1641 | . . . 457 1184 Core 404 | . . . 53 351 Absorbed by Shields . | . . . . . Core Remaining (%) 100 | 100 . 100 . . Volleys Fired 39 | . 1 2 29 7 Largest 3 | . 2 2 3 2 Hottest 155 | . 100 100 155 73 Shots Fired 83 | . 2 4 65 12 Gun 70 | . 2 4 52 12 Cannon . | . . . . . Launcher 13 | . . . 13 . Special . | . . . . . Kinetic 7 | . . . . 7 Thermal 63 | . 2 4 52 5 Explosive 13 | . . . 13 . Electromagnetic . | . . . . . Robot Hit Streak 12 | . 2 6 12 3 Robot Miss Streak 6 | . . . 6 2 Penetration Max . | . . . . . Secondary Targets 2 | . . . 1 1 Max Gunslinging Chain 1 | . . . 1 1 Shots Hit Robots 44 | . 2 4 31 7 Core Hits 38 | . 1 3 27 7 Critical Hits 1 | . . . . 1 Critical Kills . | . . . . . Critical Parts Destroyed 1 | . . . . 1 Melee Attacks . | . . . . . Impact . | . . . . . Slashing . | . . . . . Piercing . | . . . . . Sneak Attacks . | . . . . . Combat Hostiles . | . . . . . Follow-up Attacks . | . . . . . Damage Inflicted 1199 | . 24 50 1005 120 Guns 681 | . 24 50 491 116 Cannons . | . . . . . Explosions 511 | . . . 511 . Melee . | . . . . . Ramming 7 | . . . 3 4 Kinetic 79 | . . . . 79 Thermal 602 | . 24 50 491 37 Explosive 511 | . . . 511 . Electromagnetic . | . . . . . Impact . | . . . . . Slashing . | . . . . . Piercing . | . . . . . Highest Corruption . | . . . . . Average Corruption . | . . . . . Corruption Purged . | . . . . . Overload Shots . | . . . . . Overflow Damage 13 | . . . 13 . Projectiles . | . . . . . Explosions 13 | . . . 13 . Melee . | . . . . . Knockbacks . | . . . . . Impact . | . . . . . Kinetic . | . . . . . Secondary . | . . . . . Self-Inflicted Damage 22 | . . . 22 . Shots 1 | . . . 1 . Rammed 5 | . . . 1 4 Targets Rammed 5 | . . . 1 4 Kicked . | . . . . . Crushed . | . . . . . Highest Temperature 306 | . 57 114 306 102 Average Temperature 95 | . 31 60 105 56 Received Heat Transfer 211 | . . . 111 100 Effects 1 | . . . 1 . Energy Bleed 1 | . . . 1 . Siege Activations . | . . . . . Robots Corrupted . | . . . . . Combat Hostiles . | . . . . . Parts Fried . | . . . . . Impact Corruptions . | . . . . . Robots Melted . | . . . . . Combat Hostiles . | . . . . . Parts Melted 1 | . . . 1 . Heat Transferred 1406 | . 74 148 1073 111 Parts Sabotaged . | . . . . . Parts Stolen . | . . . . . Parts Stripped . | . . . . . Power Chain Reactions . | . . . . . Missiles Intercepted . | . . . . . Alert | -11 -10 -10 -9 -9 ------- Run | Scr Mat Min Mat Min Peak Influence 362 | . 22 64 362 109 Initial 109 | . . 8 24 109 Average 132 | . 10 23 199 57 Maximum Alert Level 1 | . . . 1 . Low Security (%) 66 | 100 100 100 47 100 Level 1 33 | . . . 52 . Level 2 . | . . . . . Level 3 . | . . . . . Level 4 . | . . . . . Level 5 . | . . . . . High Security . | . . . . . Max Security . | . . . . . Squads Dispatched 3 | . . . 3 . Investigation . | . . . . . Extermination . | . . . . . Reinforcement 3 | . . . 3 . Assault . | . . . . . Garrison . | . . . . . Intercept . | . . . . . Construction Impeded 1 | . . . 1 . Haulers Reinforced . | . . . . . Stealth | -11 -10 -10 -9 -9 --------- Run | Scr Mat Min Mat Min Distress Signals 2 | . . . 2 . Communications Jammed . | . . . . . Distress Signals . | . . . . . Times Spotted 37 | . 1 2 21 13 Peak Tracking Total 12 | . 1 2 3 12 Tactical Retreats 1 | . . . . 1 Traps | -11 -10 -10 -9 -9 ------- Run | Scr Mat Min Mat Min Traps Triggered 2 | . . . 2 . Indirectly . | . . . . . Trap Hack Attempts . | . . . . . Triggered . | . . . . . Disarmed . | . . . . . Reprogrammed . | . . . . . Reused . | . . . . . Traps Extracted . | . . . . . Installed . | . . . . . Triggered . | . . . . . Machines | -11 -10 -10 -9 -9 ---------- Run | Scr Mat Min Mat Min Machines Disabled 1 | . . . 1 . Max in Single Turn 1 | . . . 1 . Machines Sabotaged . | . . . . . Garrisons Compromised . | . . . . . Overloaded Fab Kills . | . . . . . Fab Network Shutdowns . | . . . . . Hacking | -11 -10 -10 -9 -9 --------- Run | Scr Mat Min Mat Min Machines Accessed . | . . . . . Terminals . | . . . . . Fabricators . | . . . . . Repair Stations . | . . . . . Recycling Units . | . . . . . Scanalyzers . | . . . . . Garrison Access . | . . . . . Total Hacks . | . . . . . Successful . | . . . . . Failed . | . . . . . Catastrophic . | . . . . . Database Lockouts . | . . . . . Manual . | . . . . . Terminals . | . . . . . Fabricators . | . . . . . Repair Stations . | . . . . . Recycling Units . | . . . . . Scanalyzers . | . . . . . Garrison Access . | . . . . . Terminal Hacks . | . . . . . Fabricator Hacks . | . . . . . Repair Station Hacks . | . . . . . Recycling Unit Hacks . | . . . . . Scanalyzer . | . . . . . Garrison Access Hacks . | . . . . . Unauthorized Hacks . | . . . . . Terminals . | . . . . . Fabricators . | . . . . . Repair Stations . | . . . . . Recycling Units . | . . . . . Scanalyzers . | . . . . . Garrison Access . | . . . . . Data Cores Recovered . | . . . . . Used . | . . . . . Hacking Detections . | . . . . . Full Trace Events . | . . . . . Feedback Events . | . . . . . Feedback Blocked . | . . . . . Robot Schematics Acquired . | . . . . . Robots Built . | . . . . . Matter . | . . . . . Time . | . . . . . Total Robot Build Rating . | . . . . . Part Schematics Acquired . | . . . . . Parts Built . | . . . . . Matter . | . . . . . Time . | . . . . . Total Part Build Rating . | . . . . . Parts Repaired . | . . . . . Time . | . . . . . Parts Recycled . | . . . . . Recycled Matter . | . . . . . Retrieved Matter . | . . . . . Retrieved Components . | . . . . . Parts Scanalyzed . | . . . . . Part Schematics Acquired . | . . . . . Parts Damaged . | . . . . . Bothacking | -11 -10 -10 -9 -9 ------------ Run | Scr Mat Min Mat Min Used RIF Installer . | . . . . . Robots Hacked . | . . . . . Non-combat . | . . . . . Combat . | . . . . . Robot Hacks Applied . | . . . . . Relay Couplers Released . | . . . . . Robots Rewired . | . . . . . Allies Hacked . | . . . . . Hacks Repelled . | . . . . . Allies | -11 -10 -10 -9 -9 -------- Run | Scr Mat Min Mat Min Total Allies 2 | . . 2 . . Largest Group 2 | . . 2 2 . Highest-Rated Group 46 | . . 46 46 . Highest-Rated Ally 31 | . . 31 31 . Total Orders . | . . . . . Ally Attacks 7 | . . 1 6 . Total Damage 81 | . . 21 60 . Kills 2 | . . 1 1 . Allies Corrupted . | . . . . . Allies Melted . | . . . . . Intel | -11 -10 -10 -9 -9 ------- Run | Scr Mat Min Mat Min Robot Analysis Total . | . . . . . Derelict Logs Recovered . | . . . . . Drone Launches . | . . . . . Drone Recoveries . | . . . . . Exploration | -11 -10 -10 -9 -9 ------------- Run | Scr Mat Min Mat Min Turns Passed 775 | 80 77 85 486 47 Spaces Moved 340 | 48 43 45 196 8 Core 23 | 18 . . . 5 Treads 317 | 30 43 45 196 3 Legs . | . . . . . Wheels . | . . . . . Hover . | . . . . . Flight . | . . . . . Fastest Speed 50 | 50 160 160 160 100 Average Speed 153 | 120 160 160 160 122 Slowest Speed 180 | 160 160 160 180 160 Overloaded Moves . | . . . . . Propulsion Burnouts . | . . . . . Robots Hopped . | . . . . . Cave-ins Triggered . | . . . . . Exploration Rate (%) 14 | 3 21 15 28 7 Regions Visited 4 Branch Regions 2 Pre-discovered Areas . | . . . . . Known Exits Taken . | . . . . . Unknown Exits Taken 4 | 1 1 1 1 . Scrap Searched . | . . . . . Spaces Dug . | . . . . . Terrain Destroyed 79 | . . . 79 . Melee . | . . . . . Projectile . | . . . . . AOE 79 | . . . 79 . Terrain Rammed . | . . . . . Walls Destroyed . | . . . . . Machines Disabled . | . . . . . Actions | -11 -10 -10 -9 -9 --------- Run | Scr Mat Min Mat Min Total 516 | 71 50 54 310 31 Wait 89 | 8 . 8 66 7 Move 336 | 47 42 44 195 8 Hop . | . . . . . Pick Up 17 | 8 4 . 5 . Fast Attach 5 | . . . 5 . Attach 15 | 6 2 . 3 4 Detach . | . . . . . Swap 2 | 1 . . 1 . Drop 8 | 1 1 . 5 1 Fire 39 | . 1 2 29 7 Melee . | . . . . . Ram . | . . . . . Kick . | . . . . . Crush 5 | . . . 1 4 Escape Stasis . | . . . . . Rewire . | . . . . . Trap . | . . . . . Miscellaneous . | . . . . . Route ------- -11/Scrapyard -10/Materials -10/Mines -9/Materials -9/Mines History --------- Turn | Location | Event 7 | -11/Scrapyard | Discovered new exit (range 14) 81 | -11/Scrapyard | Entered Materials 135 | -10/Materials | Discovered new exit (range 15) 158 | -10/Materials | Entered Mines 223 | -10/Mines | Discovered new exit (range 8) 243 | -10/Mines | Entered Materials 243 | -9/Materials | Accompanied by 2 allies 243 | -9/Materials | Evolved 2 slots: Power x1, Weapon x1 248 | -9/Materials | Led the pair of lost Derelicts to an unsafe place 688 | -9/Materials | Discovered new exit (range 13) 729 | -9/Materials | Entered Mines 730 | -9/Mines | Assembled infested the area 757 | -9/Mines | Core integrity fell below 50% 767 | -9/Mines | Core integrity fell below 20% 776 | -9/Mines | Destroyed by as-29452 with Assembled Rifle Last Messages --------------- as-46349 sneak attacks. T-07 Excavator destroyed. as-87578 suffers critical hit. Destroyed Asb. Blade. Lgt. Treads destroyed. Imp. Heat Sink destroyed. Grenade Launcher destroyed. as-46349 destroyed. Switching to secondary target: as-39835. Med. Laser destroyed. Lgt. Treads destroyed. Lgt. Armor Plating destroyed. Ion Engine destroyed. Hvy. Assault Rifle destroyed. Slammed into as-23125. Acquired 15 matter. Slammed into as-23125. Rnf. Ion Engine destroyed. Slammed into as-23125. Lgt. Treads destroyed. Map ----- +----------------------------------------------------+ | | | | | | | | | | | | | | | | | | | | | | | | | | | ?????????????????????????????????????????????? | | ?????????????????????????????????????????????? | | ????????????????????####?????????????????????? | | ??????????????????### ##????????????????????? | | ?????????????????## ! ##???????????????????? | | ?????????????????# #???????????????????? | | ????????????????## #???????????????????? | | ?????????????#### ##???????????????????? | | ????????????## ##????????????????????? | | ????????????# %!=##??###????????????????? | | ????????????# ###%#?##< #????????????????? | | ????????????## #??#a### ##???????????????? | | ?????????????####???#%aaa@a #???????????????? | | ????????????????????####a #????????????? | | ???????????????????????#| ???????? | | ???????????????????????#%* ###########??????? | | ??????????????????????? = ##????????????????? | | ??????????????????????? ##?????????????????? | | ?????????????????????? a ##??????????????????? | | ??????????????????????# ##???????????????????? | | ??????????????????????# ?????????????????????? | | ??????????????????????# ?????????????????????? | | ??????????????????????# ?????????????????????? | | ??????????????????????# ?????????????????????? | | ?????????????????????? ?????????????????????? | | ??????????????????????% ?????????????????????? | | ?????????????????????? #?????????????????????? | | ?????????????????????????????????????????????? | | ?????????????????????????????????????????????? | | ?????????????????????????????????????????????? | | ?????????????????????????????????????????????? | | ?????????????????????????????????????????????? | | ?????????????????????????????????????????????? | | ?????????????????????????????????????????????? | | ?????????????????????????????????????????????? | | ?????????????????????????????????????????????? | | ?????????????????????????????????????????????? | +----------------------------------------------------+ Best States ------------- Heat Dissipation 42 Energy Generation 17 Energy Capacity 815 Matter Stores 300 Matter Capacity 300 Sight Range 16 Terrain Scan Density 10 Armor Coverage 300 Evasion (%) 50 Recoil Reduction 2 Item Schematics ----------------- None Robot Schematics ------------------ None Fabricated ------------ Nothing Alien Tech Used ----------------- None Achievements -------------- None Challenges ------------ None Game ------ Seed GravitonNeutronScythe Manual? 0 Play Time 00:14:32 Cumulative 6.3 hours Start 2020.10.25 @ 17:07:08 End 2020.10.25 @ 17:20:37 Sessions 1 Manual Loads 0 Difficulty Rogue Special Mode None Game No. 12 Rogue 12 Adventurer 0 Explorer 0 Win Type - Total 0 Types 0/0/0/0/0/0/0/0/0 Lore% 1 Gallery% 12 Achievement% 2 Wizard Run 0 Options --------- ASCII 0 Keyboard 0 Movement Mouse Keybinds 0 Fullscreen 2 Font 12/Smallcaps Map View 76x56 Tactical HUD 0 Map Filters NONE Filters NONE Steam 1 RUN: 2d7b0540-fc36-4608-b3ac-f31aa2b7ec85